Cogmind - Beta 10.2 @@@ ROGUE MODE // 2021.02.06 @ 16:26:04 Player: Slyfox Result: Destroyed by G-47 Trooper with Particle Gun Performance ------------- Evolutions (2) 1000 Regions Visited (4) 800 Robots Destroyed (11) 55 Value Destroyed (255) 255 Prototype IDs (0) 0 Alien Tech Used (0) 0 Bonus (0) 0 TOTAL SCORE: 2110 Bonus ------- None Cogmind --------- Core Integrity 0/550 Matter 151/300 Energy 99/100 System Corruption 0% Temperature Cool (540) Movement Core (50) Location -8/Materials Parts ------- > --- POWER (3) -------- (None) > --- PROPULSION (3) --- (None) > --- UTILITY (2) ------ (None) > --- WEAPON (3) ------- (None) > --- INVENTORY (4) ---- Light Treads Light Treads Wheel Thermal Generator Peak State ------------ > --- POWER ------------ Ion Engine Improved Ion Engine > --- PROPULSION ------- Aluminum Leg Aluminum Leg Carbon-fiber Leg > --- UTILITY ---------- Small Storage Unit Hacking Suite > --- WEAPON ----------- Ion Cannon Ion Cannon Ion Cannon > --- INVENTORY -------- Light Treads Light Treads Wheel Thermal Generator [Rating: 21] Favorites ----------- Power Light Ion Engine Engine Light Ion Engine Propulsion Wheel Leg Aluminum Leg Wheel Wheel Utility Small Storage Unit Storage Small Storage Unit Hackware Hacking Suite Weapon Assault Rifle Energy Gun Medium Laser Energy Cannon Ion Cannon Ballistic Gun Assault Rifle Build | -11 -10 -10 -9 -8 ------- Run | Scr Mat Min Mat Mat Slots Evolved 4 | . . . 2 2 Power 2 | . . . 1 1 Propulsion 1 | . . . . 1 Utility . | . . . . . Weapon 1 | . . . 1 . Parts Attached 18 | 6 5 . . 7 Power 5 | 1 2 . . 2 Engine 5 | 1 2 . . 2 Core . | . . . . . Reactor . | . . . . . Propulsion 5 | 2 1 . . 2 Treads . | . . . . . Leg 3 | . 1 . . 2 Wheel 2 | 2 . . . . Hover . | . . . . . Flight . | . . . . . Utility 2 | 1 1 . . . Device . | . . . . . Storage 1 | 1 . . . . Processor . | . . . . . Hackware 1 | . 1 . . . Protection . | . . . . . Artifact . | . . . . . Weapon 6 | 2 1 . . 3 Energy Gun 2 | 1 1 . . . Energy Cannon 3 | . . . . 3 Ballistic Gun 1 | 1 . . . . Ballistic Cannon . | . . . . . Launcher . | . . . . . Special Weapon . | . . . . . Impact Weapon . | . . . . . Slashing Weapon . | . . . . . Piercing Weapon . | . . . . . Special Melee Weapon . | . . . . . Unidentified Prototypes . | . . . . . Parts Lost 15 | . 2 1 2 10 Power 3 | . . 1 . 2 Propulsion 4 | . . . 1 3 Utility 2 | . . . . 2 Weapon 6 | . 2 . 1 3 Highest Loss Streak 10 | . 1 2 2 10 Average Slot Usage (%) 75 | . 98 76 49 63 Engine 10 | . 14 5 . 12 Leg 9 | . 2 14 11 15 Wheel 12 | . 25 14 8 . Storage 11 | . 14 14 11 8 Hackware 10 | . 12 14 11 7 Energy Gun 5 | . 14 . . . Energy Cannon 6 | . . . . 19 Ballistic Gun 8 | . 14 14 8 . Naked Turns 13 | . . . . 13 Heaviest Build 34 | 11 13 11 6 34 Greatest Support 35 | 3 20 10 10 35 Greatest Overweight (x) 3 | 3 3 1 1 3 Average Overweight (x) . | 2 . . . . Largest Inventory Capacity 6 | 6 6 6 6 6 Average Capacity 5 | 5 6 6 6 5 Most Carried 6 | 6 6 6 6 6 Average Carried 5 | 4 5 6 6 4 Final Capacity 6 | 6 6 6 6 4 Final Carried 6 | 6 6 6 6 4 Class Distribution -------------------- 79% | Mutant 20% | Gunner Dominant Class ---------------- Mutant | -10/Materials Mutant | -10/Mines Mutant | -9/Materials Gunner | -8/Materials Resources | -11 -10 -10 -9 -8 ----------- Run | Scr Mat Min Mat Mat Matter Collected 503 | 170 190 58 . 85 Remotely . | . . . . . Salvage Created 353 | . 215 73 . 65 Parts 25 | . 16 8 . 1 Haulers Intercepted . | . . . . . Recyclers Shooed . | . . . . . Parts Field Recycled . | . . . . . Retrieved Matter . | . . . . . Parts Self-Destructed . | . . . . . Prevented . | . . . . . Kills | -11 -10 -10 -9 -8 ------- Run | Scr Mat Min Mat Mat Combat Hostiles Destroyed 8 | . 4 3 . 1 Guns 7 | . 4 3 . . Cannons 1 | . . . . 1 Classes Destroyed 5 | . 3 2 . . Tunneler 1 | . . 1 . . Operator 1 | . 1 . . . Watcher 1 | . 1 . . . Swarmer 3 | . . 3 . . Grunt 5 | . 4 . . 1 Best Kill Streak 4 | . 3 4 . 1 Combat Bots Only 3 | . 2 3 . 1 Max Kills in Single Turn 1 | . 1 1 . 1 Gunslinging . | . . . . . Exploded . | . . . . . Melee . | . . . . . Uniques/NPCs Destroyed . | . . . . . Combat | -11 -10 -10 -9 -8 -------- Run | Scr Mat Min Mat Mat Damage Taken 1853 | . 228 239 162 1224 Core 734 | . 20 87 65 562 Absorbed by Shields . | . . . . . Core Remaining (%) 80 | 100 . 57 83 . Volleys Fired 49 | . 26 15 . 8 Largest 3 | . 2 1 . 3 Hottest 180 | . 70 20 . 180 Shots Fired 80 | . 46 15 . 19 Gun 61 | . 46 15 . . Cannon 19 | . . . . 19 Launcher . | . . . . . Special . | . . . . . Kinetic 41 | . 26 15 . . Thermal 39 | . 20 . . 19 Explosive . | . . . . . Electromagnetic . | . . . . . Robot Hit Streak 7 | . 5 4 . 7 Robot Miss Streak 3 | . 3 3 . 2 Penetration Max . | . . . . . Secondary Targets 3 | . 3 . . . Max Gunslinging Chain 1 | . 1 . . . Shots Hit Robots 42 | . 23 7 . 12 Core Hits 22 | . 10 4 . 8 Critical Hits 2 | . . 1 . 1 Critical Kills 1 | . . 1 . . Critical Parts Destroyed 1 | . . . . 1 Melee Attacks . | . . . . . Impact . | . . . . . Slashing . | . . . . . Piercing . | . . . . . Sneak Attacks . | . . . . . Combat Hostiles . | . . . . . Follow-up Attacks . | . . . . . Damage Inflicted 699 | . 293 110 . 296 Guns 403 | . 293 110 . . Cannons 255 | . . . . 255 Explosions . | . . . . . Melee . | . . . . . Ramming 41 | . . . . 41 Kinetic 294 | . 184 110 . . Thermal 364 | . 109 . . 255 Explosive . | . . . . . Electromagnetic . | . . . . . Impact . | . . . . . Slashing . | . . . . . Piercing . | . . . . . Highest Corruption . | . . . . . Average Corruption . | . . . . . Corruption Purged . | . . . . . Overload Shots . | . . . . . Overflow Damage . | . . . . . Projectiles . | . . . . . Explosions . | . . . . . Melee . | . . . . . Knockbacks . | . . . . . Impact . | . . . . . Kinetic . | . . . . . Secondary . | . . . . . Self-Inflicted Damage 17 | . . . . 17 Shots . | . . . . . Rammed 17 | . . . . 17 Targets Rammed 17 | . . . . 17 Kicked . | . . . . . Crushed . | . . . . . Highest Temperature 920 | . 93 . . 920 Average Temperature 291 | . 25 . . 627 Received Heat Transfer 894 | . 102 . 90 702 Effects 17 | . . . . 17 Shutdowns 2 | . . . . 2 Energy Bleed 2 | . . . . 2 Interference 1 | . . . . 1 Matter Decay 4 | . . . . 4 Short Circuit 3 | . . . . 3 Damage (minor) 1 | . . . . 1 Damage (major) 4 | . . . . 4 Siege Activations . | . . . . . Robots Corrupted . | . . . . . Combat Hostiles . | . . . . . Parts Fried . | . . . . . Impact Corruptions . | . . . . . Robots Melted . | . . . . . Combat Hostiles . | . . . . . Parts Melted . | . . . . . Heat Transferred 740 | . 333 . . 407 Parts Sabotaged . | . . . . . Parts Stolen . | . . . . . Parts Stripped . | . . . . . Power Chain Reactions . | . . . . . Missiles Intercepted . | . . . . . Alert | -11 -10 -10 -9 -8 ------- Run | Scr Mat Min Mat Mat Peak Influence 153 | . 153 120 76 84 Initial 55 | . . 55 46 23 Average 43 | . 61 89 61 31 Maximum Alert Level . | . . . . . Low Security (%) 100 | 100 100 100 100 100 Level 1 . | . . . . . Level 2 . | . . . . . Level 3 . | . . . . . Level 4 . | . . . . . Level 5 . | . . . . . High Security . | . . . . . Max Security . | . . . . . Squads Dispatched 5 | . 2 . 2 1 Investigation . | . . . . . Extermination . | . . . . . Reinforcement 5 | . 2 . 2 1 Assault . | . . . . . Garrison . | . . . . . Intercept . | . . . . . Construction Impeded . | . . . . . Haulers Reinforced . | . . . . . Stealth | -11 -10 -10 -9 -8 --------- Run | Scr Mat Min Mat Mat Distress Signals 2 | . 2 . . . Communications Jammed . | . . . . . Distress Signals . | . . . . . Times Spotted 33 | . 12 3 10 8 Peak Tracking Total 8 | . 6 3 8 7 Tactical Retreats . | . . . . . Traps | -11 -10 -10 -9 -8 ------- Run | Scr Mat Min Mat Mat Traps Triggered . | . . . . . Indirectly . | . . . . . Trap Hack Attempts . | . . . . . Triggered . | . . . . . Disarmed . | . . . . . Reprogrammed . | . . . . . Reused . | . . . . . Traps Extracted . | . . . . . Installed . | . . . . . Triggered . | . . . . . Machines | -11 -10 -10 -9 -8 ---------- Run | Scr Mat Min Mat Mat Machines Disabled . | . . . . . Max in Single Turn . | . . . . . Machines Sabotaged . | . . . . . Garrisons Compromised . | . . . . . Overloaded Fab Kills . | . . . . . Fab Network Shutdowns . | . . . . . Hacking | -11 -10 -10 -9 -8 --------- Run | Scr Mat Min Mat Mat Machines Accessed 1 | . 1 . . . Terminals 1 | . 1 . . . Fabricators . | . . . . . Repair Stations . | . . . . . Recycling Units . | . . . . . Scanalyzers . | . . . . . Garrison Access . | . . . . . Total Hacks 3 | . 3 . . . Successful 2 | . 2 . . . Failed 1 | . 1 . . . Catastrophic . | . . . . . Database Lockouts . | . . . . . Manual . | . . . . . Terminals 3 | . 3 . . . Fabricators . | . . . . . Repair Stations . | . . . . . Recycling Units . | . . . . . Scanalyzers . | . . . . . Garrison Access . | . . . . . Terminal Hacks 2 | . 2 . . . Robot Analysis 1 | . 1 . . . Branch Access Points 1 | . 1 . . . Fabricator Hacks . | . . . . . Repair Station Hacks . | . . . . . Recycling Unit Hacks . | . . . . . Scanalyzer . | . . . . . Garrison Access Hacks . | . . . . . Unauthorized Hacks . | . . . . . Terminals . | . . . . . Fabricators . | . . . . . Repair Stations . | . . . . . Recycling Units . | . . . . . Scanalyzers . | . . . . . Garrison Access . | . . . . . Data Cores Recovered . | . . . . . Used . | . . . . . Hacking Detections . | . . . . . Full Trace Events . | . . . . . Feedback Events . | . . . . . Feedback Blocked . | . . . . . Robot Schematics Acquired . | . . . . . Robots Built . | . . . . . Matter . | . . . . . Time . | . . . . . Total Robot Build Rating . | . . . . . Part Schematics Acquired . | . . . . . Parts Built . | . . . . . Matter . | . . . . . Time . | . . . . . Total Part Build Rating . | . . . . . Parts Repaired . | . . . . . Time . | . . . . . Parts Recycled . | . . . . . Recycled Matter . | . . . . . Retrieved Matter . | . . . . . Retrieved Components . | . . . . . Parts Scanalyzed . | . . . . . Part Schematics Acquired . | . . . . . Parts Damaged . | . . . . . Bothacking | -11 -10 -10 -9 -8 ------------ Run | Scr Mat Min Mat Mat Used RIF Installer . | . . . . . Robots Hacked . | . . . . . Non-combat . | . . . . . Combat . | . . . . . Robot Hacks Applied . | . . . . . Relay Couplers Released . | . . . . . Robots Rewired . | . . . . . Allies Hacked . | . . . . . Hacks Repelled . | . . . . . Allies | -11 -10 -10 -9 -8 -------- Run | Scr Mat Min Mat Mat Total Allies . | . . . . . Largest Group . | . . . . . Highest-Rated Group . | . . . . . Highest-Rated Ally . | . . . . . Total Orders . | . . . . . Ally Attacks . | . . . . . Total Damage . | . . . . . Kills . | . . . . . Allies Corrupted . | . . . . . Allies Melted . | . . . . . Intel | -11 -10 -10 -9 -8 ------- Run | Scr Mat Min Mat Mat Robot Analysis Total 1 | . 1 . . . Derelict Logs Recovered . | . . . . . Drone Launches . | . . . . . Drone Recoveries . | . . . . . Exploration | -11 -10 -10 -9 -8 ------------- Run | Scr Mat Min Mat Mat Turns Passed 595 | 112 181 47 86 169 Spaces Moved 377 | 55 107 21 101 93 Core 121 | 55 9 . 26 31 Treads . | . . . . . Legs 62 | . . . . 62 Wheels 194 | . 98 21 75 . Hover . | . . . . . Flight . | . . . . . Fastest Speed 50 | 50 80 80 80 50 Average Speed 109 | 170 93 80 85 126 Slowest Speed 200 | 200 200 90 100 200 Overloaded Moves . | . . . . . Propulsion Burnouts . | . . . . . Robots Hopped . | . . . . . Cave-ins Triggered . | . . . . . Exploration Rate (%) 14 | 3 33 7 19 12 Regions Visited 4 Branch Regions 1 Pre-discovered Areas . | . . . . . Known Exits Taken 1 | . 1 . . . Unknown Exits Taken 3 | 1 . 1 1 . Scrap Searched . | . . . . . Spaces Dug . | . . . . . Terrain Destroyed 1 | . . . . 1 Melee . | . . . . . Projectile 1 | . . . . 1 AOE . | . . . . . Terrain Rammed . | . . . . . Walls Destroyed . | . . . . . Machines Disabled . | . . . . . Actions | -11 -10 -10 -9 -8 --------- Run | Scr Mat Min Mat Mat Total 481 | 74 140 35 100 132 Wait 2 | 2 . . . . Move 373 | 54 106 20 100 93 Hop . | . . . . . Pick Up 20 | 12 2 . . 6 Fast Attach 1 | . 1 . . . Attach 14 | 6 1 . . 7 Detach . | . . . . . Swap 3 | . 3 . . . Drop 2 | . 1 . . 1 Fire 49 | . 26 15 . 8 Melee . | . . . . . Ram 17 | . . . . 17 Kick . | . . . . . Crush . | . . . . . Escape Stasis . | . . . . . Rewire . | . . . . . Trap . | . . . . . Miscellaneous . | . . . . . Route ------- -11/Scrapyard -10/Materials (discovered 2 exits: *Min x2) -10/Mines -9/Materials -8/Materials History --------- Turn | Location | Event 22 | -11/Scrapyard | Discovered new exit (range 15) 113 | -11/Scrapyard | Entered Materials 166 | -10/Materials | Identified exit to Mines 294 | -10/Materials | Entered Mines 311 | -10/Mines | Build established: Mutant 321 | -10/Mines | Discovered new exit (range 10) 341 | -10/Mines | Entered Materials 341 | -9/Materials | Evolved 2 slots: Power x1, Weapon x1 424 | -9/Materials | Discovered new exit (range 4) 427 | -9/Materials | Entered another Materials area 427 | -8/Materials | Evolved 2 slots: Power x1, Propulsion x1 584 | -8/Materials | Core integrity fell below 50% 590 | -8/Materials | Core integrity fell below 20% 596 | -8/Materials | Destroyed by G-47 Trooper with Particle Gun Last Messages --------------- Slammed into G-47 Trooper. Overheating: Matter decay (-66). Slammed into G-47 Trooper. Acquired 42 matter. Slammed into G-47 Trooper. Overheating: Sml. Storage Unit damaged (-7). Acquired 15 matter. Slammed into G-47 Trooper. T-07 Excavator is excavating. Sml. Storage Unit destroyed. Slammed into G-47 Trooper. Overheating: Matter decay (-45). Acquired 2 matter. Slammed into G-47 Trooper. Acquired 3 matter. Slammed into G-47 Trooper. Overheating: Matter decay (-63). T-07 Excavator is excavating. Overheating: Matter decay (-50). U-05 Engineer lays Concrete. Map ----- +----------------------------------------------------+ | ?????????????????????????????????????????????????? | | ?????????????????????????????????????????????????? | | ?????????????????????????????????????????????????? | | ?????????????????????????????????????????????????? | | ?????????????????????????????????????????????????? | | ?????????????????????????????????? ??????????????? | | ?????????????????????????????????# ??????????????? | | ?????????????????????????????????# ??????????????? | | ?????????????????????????????????# ??????????????? | | ?????????????????????????????????# ##???????? ??? | | ?????????????????????????????????/ ######### ??? | | ?????????????????????????????????# ??? | | ?????????????????????????????????# ???? | | ?????????????????????????????????# ?????? | | ???????????????????????########### """ ??????? | | ??????? ?????????????# "" # """ #???????? | | ?????? ?????????????# ""S # """ #???????? | | ?????? ?????????????# "" # #???????? | | ?????? ?????????????# """ # ####+###? | | ??????# #????????????# """ # # !#? | | ??????# #????????????# """ + # """ #? | | ??????# #????????????# # # """ #? | | ??????# #????????????# ##"T"# / """ #? | | ??????# #????????????###+############ # #? | | ??????# ##########????## ### %# [ #? | | ??????# # ######@ g%%%#####+### | | ??????# # + u g g%#% | | ??????# # # g%!%=% | | ??????# # # / ######=!# # | | ??????# + + !/ # !#%%######### | | ??????# # # !/ + ####???????? | | ??????# # # #! #??????????? | | ??????# # + + ! #??????????? | | ??????##### #######+##### # #??????????? | | ??????????##########?# # # #??????????? | | ?????????????????????# ! + # #??????????? | | ?????????????????????# # # #??????????? | | ?????????????????????# # # #??????????? | | ?????????????????????# """ """ + ######??????????? | | ?????????????????????# """ """ ###???????????????? | | ?????????????????????# """ """ #?????????????????? | | ?????????????????????# #?????????????????? | | ?????????????????????###########?????????????????? | | ?????????????????????????????????????????????????? | | | | | | | | | | | | | +----------------------------------------------------+ Best States ------------- Heat Dissipation 31 Energy Generation 17 Energy Capacity 415 Matter Stores 300 Matter Capacity 300 Sight Range 16 Terrain Scan Density 10 Evasion (%) 44 Offensive Hacking 10 Item Schematics ----------------- None Robot Schematics ------------------ None Fabricated ------------ Nothing Alien Tech Used ----------------- None Achievements -------------- None Challenges ------------ None Game ------ Seed MatterArmoredInjector Manual? 0 Play Time 00:14:50 Cumulative 6.0 hours Start 2021.01.31 @ 15:43:07 End 2021.02.06 @ 16:26:04 Sessions 3 Manual Loads 0 Difficulty Rogue Special Mode None Game No. 13 Rogue 13 Adventurer 0 Explorer 0 Win Type - Total 0 Types 0/0/0/0/0/0/0/0/0 Lore% 3 Gallery% 8 Achievement% 7 Wizard Run 0 Options --------- ASCII 0 Keyboard 0 Movement Mouse Keybinds 0 Fullscreen 1 Font 24/Smallcaps Map View 76x50 Tactical HUD 0 Map Filters NONE Filters NONE Steam 1 RUN: 2d31ff6b-aea3-48dd-af7e-044755ef4816